{"text_format":"1","workbook":"xlsx","n_sheets":2,"sheets":["Conversions monétaires","Taux de change"],"not_rendered":{"charts":0,"images":1,"macros":1,"external_links":0,"defined_names":7,"comments":0,"pivot_tables":0},"unopened":[],"bounds":{"document_bytes":16777216,"sheet_cells":100000,"rows_first":2000,"rows_last":500,"rows_between":2000,"halvings":0,"cell_chars":16384,"cell_head_chars":4096},"cells_cut":0,"cells_raw":0,"read":"whole","date_system":"1900"}

{"sheet":"Conversions monétaires","index":0,"n_rows":10,"n_cols":5,"rows_kept":10,"cut":false,"hidden":false,"merged":[]}
[]
[]
[]
[]
[null,null,null,41,6000]
[]
[]
[]
[]
[null,null,null,27,{"$f":"IFERROR(IF(OR(DeDevise=0,EnDevise=0),\"\",DuMontant/OFFSET(Devises,DeDevise-1,3,1,1)*OFFSET(Devises,EnDevise-1,3,1,1)),\"\")","v":35736}]

{"sheet":"Taux de change","index":1,"n_rows":59,"n_cols":5,"rows_kept":59,"cut":false,"hidden":false,"merged":[]}
["Taux de change"]
["Les données figurant sur cette feuille proviennent d’une requête sur le site Web MSN Money. Elles sont mises à jour lorsque l’utilisateur appuie sur le bouton Mettre à jour les taux de change dans la feuille Conversions monétaires."]
[null,null,"Currency Rates Provided by MSN Money"]
[null,null,"Click here to visit MSN Money"]
[]
[null,"Nom de liste","Nom","En US$","Par US$"]
[null,{"$f":"IF(ISERROR(FIND(\" en Dollar américain\",C7)),C7,LEFT(C7,FIND(\" en Dollar américain\",C7)-1))","v":"Peso argentin"},"Peso argentin en Dollar américain",0.22427,4.4589999999999996]
[null,{"$f":"IF(ISERROR(FIND(\" en Dollar américain\",C8)),C8,LEFT(C8,FIND(\" en Dollar américain\",C8)-1))","v":"Dollar australien"},"Dollar australien en Dollar américain",0.98463999999999996,1.016]
[null,"Dinar de Bahreïn","Dinar de Bahreïn en Dollar américain",2.6482999999999999,0.378]
[null,"Boliviano bolivien","Boliviano bolivien en Dollar américain",0.14451,6.92]
[null,"Real brésilien","Real brésilien en Dollar américain",0.49265999999999999,2.0299999999999998]
[null,"Livre britannique","Livre britannique en Dollar américain",1.5825,0.63200000000000001]
[null,"Dollar canadien","Dollar canadien en Dollar américain",0.97962000000000005,1.0209999999999999]
[null,"Peso chilien","Peso chilien en Dollar américain",1.98E-3,504.8]
[null,"Yuan chinois","Yuan chinois en Dollar américain",0.15797,6.33]
[null,"Peso colombien","Peso colombien en Dollar américain",5.5000000000000003E-4,1817]
[null,"Couronne tchèque","Couronne tchèque en Dollar américain",5.0470000000000001E-2,19.814]
[null,"Couronne danoise","Couronne danoise en Dollar américain",0.17216000000000001,5.8090000000000002]
[null,"Euro","Euro en Dollar américain",1.2793000000000001,0.78200000000000003]
[null,"Livre égyptienne*","Livre égyptienne* en Dollar américain",0.1656,6.0389999999999997]
[null,"Dollar de Hong-Kong","Dollar de Hong-Kong en Dollar américain",0.12876000000000001,7.766]
[null,"Forint hongrois","Forint hongrois en Dollar américain",4.2900000000000004E-3,233]
[null,"Roupie indienne","Roupie indienne en Dollar américain",1.8370000000000001E-2,54.43]
[null,"Rupiah indonésienne","Rupiah indonésienne en Dollar américain",1.1E-4,9348]
[null,"Yen japonais","Yen japonais en Dollar américain",1.2630000000000001E-2,79.16]
[null,"Dinar jordanien","Dinar jordanien en Dollar américain",1.4104000000000001,0.70899999999999996]
[null,"Schilling kenyan","Schilling kenyan en Dollar américain",1.184E-2,84.45]
[null,"Won sud-coréen","Won sud-coréen en Dollar américain",8.5999999999999998E-4,1167]
[null,"Dinar koweïtien","Dinar koweïtien en Dollar américain",3.5727000000000002,0.28000000000000003]
[null,"Dirham marocain","Dirham marocain en Dollar américain",0.11529,8.6739999999999995]
[null,"Ringgit malaisien","Ringgit malaisien en Dollar américain",0.31949,3.13]
[null,"Peso mexicain","Peso mexicain en Dollar américain",7.2559999999999999E-2,13.782]
[null,"Couronne norvégienne","Couronne norvégienne en Dollar américain",0.16789999999999999,5.9560000000000004]
[null,"Rial d’Oman","Rial d’Oman en Dollar américain",2.5926999999999998,0.38600000000000001]
[null,"Inti péruvien","Inti péruvien en Dollar américain",0.37411,2.673]
[null,"Peso philippin","Peso philippin en Dollar américain",2.3179999999999999E-2,43.15]
[null,"Roupie pakistanaise","Roupie pakistanaise en Dollar américain",1.0959999999999999E-2,91.27]
[null,"Riyal saoudien","Riyal saoudien en Dollar américain",0.2666,3.7509999999999999]
[null,"Dollar de Singapour","Dollar de Singapour en Dollar américain",0.78676999999999997,1.2709999999999999]
[null,"Rand sud-africain","Rand sud-africain en Dollar américain",0.12060999999999999,8.2910000000000004]
[null,"Couronne suédoise","Couronne suédoise en Dollar américain",0.14001,7.1420000000000003]
[null,"Franc suisse","Franc suisse en Dollar américain",1.0650999999999999,0.93899999999999995]
[null,"Dollar taïwanais","Dollar taïwanais en Dollar américain",3.3840000000000002E-2,29.548999999999999]
[null,"Baht thaïlandais","Baht thaïlandais en Dollar américain",3.1949999999999999E-2,31.3]
[null,"Dinar tunisien","Dinar tunisien en Dollar américain",0.63366999999999996,1.5780000000000001]
[null,"Dirham des Émirats arabes unis","Dirham des Émirats arabes unis en Dollar américain",0.27221000000000001,3.6739999999999999]
[null,"Dollar américain","Dollar américain",1,1]
[null,"Bolivar vénézuélien","Bolivar vénézuélien en Dollar américain",0.23282,4.2949999999999999]
[]
[]
[]
[null,null,"MSN Finances",null,"Microsoft Office Update"]
[null,null,"Découvrez les outils et les articles destinés aux investisseurs.",null,"Obtenez les dernières mises à jour de Microsoft Office"]
[null,null,"Politique de confidentialité"]
[null,null,"Informations légales"]
[null,null,"Annonceurs"]
[null,null,"MSN dans le monde"]
[null,null,"À propos de vos annonces"]
[null,null,"© 2012 Microsoft "]